bitfinex/quotes_SOLUSD_20241116
["timestamp","ask_amount","ask_price","bid_price","bid_amount"]
[1731770469383,0.1,214.65,214.6,23.26042737]
[1731770469603,22.99444415,214.67,214.6,23.26042737]
[1731770469903,0.1,214.65,214.6,23.26042737]
[1731770470409,22.99444415,214.68,214.6,23.26042737]
[1731770470588,0.1,214.66,214.61,4.6596]
[1731770471004,0.1,214.65,214.61,4.6596]
[1731770471184,22.99444415,214.68,214.61,4.6596]
[1731770471384,0.1,214.64,214.61,4.6596]
[1731770471695,0.1,214.66,214.62,22.89444415]
[1731770472005,0.1,214.72,214.61,16.3086]
[1731770472006,0.1,214.72,214.65,22.89444415]
[1731770472209,0.1,214.72,214.61,62.50104415]
[1731770472210,3.3934043,214.71,214.69,22.89444415]
[1731770472424,0.1,214.75,214.7,22.89444415]
[1731770472588,0.1,214.72,214.7,22.89444415]
[1731770472788,0.1,214.74,214.7,22.89444415]
[1731770473109,3.3930394,214.73,214.7,22.89444415]
[1731770473318,3.3930394,214.73,214.61,62.50104415]
[1731770473319,0.1,214.74,214.69,22.89444415]
[1731770473501,0.1,214.69,214.68,22.89444415]
[1731770473813,0.1,214.69,214.62,34.54284415]
[1731770474012,0.1,214.66,214.62,34.54284415]
[1731770474594,0.1,214.68,214.64,22.89444415]
[1731770475111,0.1,214.68,214.65,4.6587]
[1731770475418,0.1,214.66,214.62,34.54284415]
[1731770475605,22.89444415,214.7,214.6,0.36598322]
[1731770475606,0.1,214.61,214.6,0.36598322]
[1731770475992,0.1,214.66,214.61,16.3086]
[1731770476212,0.1,214.66,214.63,22.89444415]
[1731770476393,0.1,214.68,214.65,22.89444415]
[1731770476592,22.89444415,214.72,214.61,16.3086]
[1731770476593,0.1,214.72,214.67,22.89444415]
[1731770476797,0.1,214.73,214.69,22.89444415]
[1731770476994,0.1,214.8,214.68,16.303]
[1731770476995,0.1,214.69,214.68,16.303]
[1731770477203,0.1,214.69,214.66,4.6584]
[1731770477513,0.1,214.69,214.67,22.89444415]
[1731770477820,0.1,214.7,214.68,22.89444415]
[1731770478107,0.1,214.74,214.69,22.89444415]
[1731770478315,0.1,214.72,214.69,22.89444415]
[1731770478503,0.1,214.7,214.69,22.89444415]
[1731770479334,0.1,214.72,214.69,27.55224415]
[1731770479818,0.1,214.76,214.71,22.89444415]
[1731770480003,3.39046054,214.75,214.72,22.89444415]
[1731770480194,0.1,214.76,214.73,22.89444415]
[1731770480558,0.1,214.79,214.74,22.89444415]
[1731770480724,0.1,214.81,214.78,22.89444415]
[1731770480907,0.1,214.83,214.78,22.89444415]
[1731770481090,0.1,214.81,214.78,22.89444415]
[1731770481295,3.39001976,214.8,214.78,22.89444415]
[1731770481495,0.1,214.79,214.77,27.55044415]
[1731770481695,0.1,214.81,214.78,22.89444415]
[1731770481924,22.89444415,214.85,214.78,22.89444415]
[1731770481925,3.4883408,214.8,214.78,22.89444415]
[1731770482298,0.1,214.8,214.78,22.89444415]
[1731770482600,0.1,214.8,214.77,34.53474415]
[1731770482808,0.1,214.8,214.76,22.89444415]
[1731770483000,0.1,214.8,214.77,22.89444415]
[1731770483526,0.1,214.78,214.76,22.89444415]
[1731770483901,0.1,214.8,214.76,22.89444415]
[1731770484096,0.1,214.8,214.77,22.89444415]
[1731770484936,0.1,214.8,214.78,4.6559]
[1731770485117,0.1,214.8,214.78,27.55034415]
[1731770485314,0.1,214.84,214.79,22.89444415]
[1731770485634,3.38474134,214.83,214.82,22.89444415]
[1731770486910,0.1,214.86,214.82,39.18704415]
[1731770487228,3.38631478,214.85,214.83,22.89444415]
[1731770487433,0.1,214.88,214.83,22.89444415]
[1731770487434,3.38631478,214.84,214.83,22.89444415]
[1731770487927,22.99444415,214.92,214.83,22.89444415]
[1731770488131,22.99444415,214.92,214.82,16.2926]
[1731770488132,0.1,214.88,214.86,22.89444415]
[1731770488535,0.1,214.91,214.86,22.89444415]
[1731770488834,0.1,214.89,214.86,22.89444415]
[1731770489009,0.1,214.89,214.82,16.2926]
[1731770489010,0.1,214.89,214.84,22.89444415]
[1731770489220,0.1,214.87,214.84,22.89444415]
[1731770490232,0.1,214.87,214.85,16.2904]
[1731770492241,0.1,214.81,214.8,11.6382]
[1731770492729,0.1,214.81,214.77,4.6561]
[1731770493448,0.1,214.81,214.77,39.19084415]
[1731770494335,0.1,214.81,214.77,16.2964]
[1731770494740,0.1,214.81,214.77,39.19084415]
[1731770497624,0.1,214.81,214.78,22.89444415]
[1731770497838,0.1,214.81,214.77,39.19084415]
[1731770498417,0.1,214.79,214.77,16.2964]
[1731770500147,0.1,214.81,214.77,16.2964]
[1731770500638,0.1,214.81,214.8,22.89444415]
[1731770501223,0.1,214.84,214.8,22.89444415]
[1731770501418,22.89444415,214.88,214.8,22.89444415]
[1731770501419,0.1,214.81,214.8,22.89444415]
[1731770501621,0.1,214.81,214.8,4.6554]
[1731770501947,0.1,214.81,214.78,16.2956]
[1731770502135,0.1,214.8,214.78,16.2956]
[1731770502330,0.1,214.8,214.76,4.6562]
[1731770502643,0.1,214.75,214.74,16.2985]
[1731770502827,0.1,214.75,214.74,11.6418]
[1731770507243,0.1,214.72,214.71,22.89444415]
[1731770507424,0.1,214.72,214.7,4.6574]
[1731770508044,0.1,214.72,214.7,16.3015]
[1731770508743,0.1,214.74,214.71,22.89444415]
[1731770509552,0.1,214.74,214.73,22.89444415]
[1731770509852,0.1,214.72,214.71,22.89444415]
[1731770510363,0.1,214.7,214.67,22.89444415]
[1731770510530,0.1,214.68,214.65,22.89444415]
[1731770511754,0.1,214.72,214.67,22.89444415]
[1731770512054,0.1,214.74,214.71,22.89444415]
[1731770512262,0.1,214.74,214.73,22.89444415]
[1731770513134,0.2,214.83,214.63,11.6479]
[1731770513135,0.1,214.72,214.69,22.89444415]
[1731770513345,0.1,214.7,214.67,22.89444415]
[1731770513650,0.1,214.72,214.69,22.89444415]
[1731770513825,0.1,214.72,214.7,22.89444415]
[1731770514357,0.1,214.72,214.69,22.89444415]
[1731770514653,0.1,214.7,214.69,27.55214415]
[1731770514836,0.1,214.7,214.69,4.6577]
[1731770515362,0.1,214.7,214.69,27.55214415]
[1731770515655,0.1,214.72,214.69,27.55214415]
[1731770516454,0.1,214.7,214.69,27.55214415]
[1731770517044,0.1,214.7,214.68,11.6452]
[1731770517534,0.1,214.7,214.68,16.3032]
[1731770518660,0.1,214.7,214.68,22.89444415]
[1731770518847,0.1,214.72,214.68,22.89444415]
[1731770519034,0.1,214.7,214.68,22.89444415]
[1731770519233,0.1,214.72,214.68,22.89444415]
[1731770519434,0.1,214.7,214.68,22.89444415]
[1731770519846,0.1,214.7,214.69,4.6578]
[1731770520472,0.1,214.7,214.69,27.55224415]
[1731770520642,0.1,214.72,214.69,39.19684415]
[1731770520839,0.1,214.74,214.71,14.30575953]
[1731770521058,0.1,214.74,214.73,14.30575953]
[1731770521355,0.1,214.75,214.73,14.30575953]
[1731770521659,0.1,214.75,214.74,14.30575953]
[1731770521829,0.1,214.75,214.74,18.96245953]
[1731770522733,0.1,214.75,214.74,22.88554761]
[1731770523935,0.1,214.75,214.74,27.54224761]
[1731770524837,0.1,214.75,214.74,4.6567]
[1731770525544,0.1,214.75,214.73,11.6424]
[1731770525954,0.1,214.71,214.7,4.6575]
[1731770527057,0.1,214.74,214.7,39.18714761]
[1731770527362,0.1,214.76,214.72,22.88554761]
[1731770527940,0.1,214.76,214.73,4.657]
[1731770528144,0.1,214.74,214.73,4.657]
[1731770529166,0.1,214.74,214.7,22.88554761]
[1731770529368,0.1,214.74,214.71,22.88554761]
[1731770529667,0.1,214.78,214.73,22.88554761]
[1731770529848,0.1,214.78,214.76,22.88554761]
[1731770530040,0.1,214.78,214.75,22.88554761]
[1731770530249,0.1,214.78,214.65,29.25382524]
[1731770530250,0.1,214.8,214.77,22.88554761]
[1731770530464,8.12821169,214.9,214.74,22.88554761]
[1731770530465,0.1,214.78,214.74,22.88554761]
[1731770530756,0.1,214.78,214.64,106.58612594]
[1731770530757,0.1,214.75,214.73,22.88554761]
[1731770530959,0.1,214.73,214.71,22.88554761]
[1731770531170,22.88554761,214.78,214.7,27.54314761]
[1731770531171,0.1,214.71,214.7,27.54314761]
[1731770531961,0.1,214.71,214.69,11.6445]
[1731770533081,0.1,214.71,214.64,23.2948]
[1731770533082,0.1,214.68,214.65,11.6467]
[1731770533363,0.1,214.68,214.65,39.19094761]
[1731770533572,0.1,214.68,214.66,22.88554761]
[1731770534569,0.1,214.68,214.67,4.6583]
[1731770535467,0.1,214.72,214.67,16.304]
[1731770535769,0.1,214.7,214.69,22.88554761]
[1731770536374,0.1,214.76,214.7,0.09367462]
[1731770536670,0.1,214.76,214.75,22.88554761]
[1731770536879,0.1,214.76,214.71,16.301]
[1731770536880,0.1,214.74,214.73,22.88554761]
[1731770537751,0.1,214.74,214.72,22.88554761]
[1731770537952,0.1,214.74,214.71,39.5882]
[1731770537953,0.1,214.74,214.73,22.88554761]
[1731770538171,4.6552,214.82,214.73,22.88554761]
[1731770538172,0.1,214.76,214.73,22.88554761]
[1731770538471,0.1,214.76,214.74,22.88554761]
[1731770538652,0.1,214.76,214.74,4.6566]
[1731770539056,0.1,214.76,214.74,16.2985]
[1731770540075,0.1,214.76,214.74,11.6419]
[1731770540270,0.1,214.71,214.66,22.88554761]
[1731770540611,22.88554761,214.71,214.65,11.6468]
[1731770540742,22.88554761,214.7,214.65,11.6468]
[1731770541554,4.6573,214.72,214.65,11.6468]
[1731770541555,22.88554761,214.71,214.65,11.6468]
[1731770541760,22.88554761,214.71,214.64,4.6589]
[1731770541761,22.88554761,214.71,214.64,22.88554761]
[1731770542973,14.31789399,214.71,214.64,14.31789399]
[1731770543754,14.31789399,214.72,214.65,14.31789399]
[1731770544070,14.31789399,214.75,214.67,14.31789399]
[1731770544368,14.31789399,214.72,214.66,16.3048]
[1731770544877,40.322764,214.79,214.69,14.31789399]
[1731770544878,4.78119,214.79,214.69,14.31789399]
[1731770545046,14.31789399,214.77,214.69,14.31789399]
[1731770545564,14.31789399,214.76,214.69,14.31789399]
[1731770545776,14.31789399,214.76,214.68,14.31789399]
[1731770546061,14.31789399,214.76,214.69,4.6578]
[1731770546264,18.97429399,214.76,214.69,4.6578]
[1731770546649,3.39192416,214.78,214.73,14.31789399]
[1731770546845,18.97339399,214.8,214.73,14.31789399]
[1731770547053,14.31789399,214.8,214.73,14.31789399]
[1731770547361,3.39308706,214.77,214.73,14.31789399]
[1731770547756,3.39308706,214.79,214.73,14.31789399]
[1731770547974,3.39446751,214.78,214.74,4.6567]
[1731770548267,14.31789399,214.8,214.74,4.6567]
[1731770548464,3.39373438,214.79,214.74,4.6567]
[1731770548667,3.39373438,214.78,214.74,4.6567]
[1731770548970,3.39373438,214.77,214.74,4.6567]
[1731770549168,14.31789399,214.8,214.74,4.6567]
[1731770549480,3.39322392,214.79,214.74,16.2986]
[1731770549683,3.39322392,214.78,214.74,16.2986]
[1731770549974,3.39322392,214.77,214.74,16.2986]
[1731770550185,3.39322392,214.77,214.75,14.31789399]
[1731770550350,3.39322392,214.77,214.76,14.31789399]
[1731770550550,3.39322392,214.77,214.76,14.41156861]
[1731770550756,14.31789399,214.86,214.76,14.41156861]
[1731770550972,3.39379384,214.85,214.79,14.31789399]
[1731770551158,17.71168783,214.84,214.76,14.31789399]
[1731770551352,14.31789399,214.83,214.76,4.6561]
[1731770551873,14.31789399,214.81,214.75,11.6414]
[1731770552181,3.39325346,214.8,214.75,16.2979]
[1731770552379,3.39325346,214.8,214.79,14.31789399]
[1731770552550,18.97149399,214.89,214.79,14.31789399]
[1731770552751,14.31789399,214.87,214.79,14.31789399]
[1731770552972,17.71113058,214.86,214.79,14.31789399]
[1731770553175,3.39323659,214.85,214.79,14.31789399]
[1731770553372,3.39323659,214.84,214.79,14.31789399]
[1731770553586,3.39323659,214.83,214.8,4.6554]
[1731770553874,14.31789399,214.87,214.8,4.6554]
[1731770554048,3.39225808,214.86,214.8,4.6554]
[1731770554251,18.97199399,214.87,214.79,30.61259399]
[1731770554565,3.39117851,214.85,214.79,30.61259399]
[1731770554767,3.39117851,214.84,214.79,30.61259399]
[1731770555259,3.39117851,214.83,214.79,30.61259399]
[1731770555463,14.31789399,214.87,214.79,30.61259399]
[1731770555773,3.39022692,214.86,214.79,30.61259399]
[1731770556077,3.39027902,214.85,214.79,30.61259399]
[1731770556270,3.39027902,214.84,214.79,30.61259399]
[1731770556456,18.97189399,214.87,214.79,30.61259399]
[1731770556652,3.39101997,214.86,214.79,30.61259399]
[1731770556881,3.39101997,214.85,214.79,30.61259399]
[1731770557067,3.39101997,214.84,214.79,30.61259399]
[1731770557254,14.31789399,214.87,214.79,30.61259399]
[1731770557458,3.39127399,214.86,214.79,30.61259399]
[1731770557686,3.39127399,214.85,214.79,30.61259399]
[1731770557857,3.39127399,214.84,214.79,30.61259399]
[1731770558176,14.31789399,214.87,214.79,30.61259399]
[1731770558383,3.39094306,214.86,214.79,30.61259399]
[1731770558686,3.39094306,214.85,214.8,14.31789399]
[1731770558857,3.39094306,214.84,214.8,14.31789399]
[1731770559062,14.31789399,214.87,214.8,14.31789399]
[1731770559277,3.3905633,214.86,214.8,14.31789399]
[1731770559477,2.8905633,214.85,214.8,14.31789399]
[1731770559661,4.6538,214.88,214.8,14.31789399]
[1731770559868,14.31789399,214.91,214.84,14.31789399]
[1731770560081,14.31789399,214.93,214.84,14.31789399]
[1731770560265,14.31789399,214.93,214.86,14.31789399]
[1731770561179,14.31789399,214.93,214.86,18.97199399]
[1731770562682,14.31789399,214.93,214.86,30.60739399]
[1731770563771,14.31789399,214.95,214.88,14.31789399]
[1731770564378,14.31789399,214.92,214.86,11.6354]
[1731770564588,14.31789399,214.92,214.86,16.2895]
[1731770564754,14.31789399,214.93,214.86,16.2895]
[1731770565162,14.31789399,214.92,214.84,14.31789399]
[1731770565365,14.31789399,214.91,214.84,18.97239399]
[1731770565584,4.6522,214.95,214.84,18.97239399]
[1731770565585,14.31789399,214.92,214.84,30.60889399]
[1731770566284,14.31789399,214.94,214.86,14.31789399]
[1731770567582,14.31789399,214.94,214.87,16.2888]
[1731770567760,4.6519,214.97,214.88,0.09367462]
[1731770567964,0.21969,214.98,214.93,14.31789399]
[1731770569499,0.21969,214.98,214.94,4.6524]
[1731770570094,0.21969,214.98,214.94,16.2835]
[1731770573691,0.21969,214.98,214.92,14.31789399]
[1731770574584,0.21969,214.98,214.93,16.2842]
[1731770576395,0.21969,214.98,214.94,14.31789399]
[1731770576775,0.21969,214.98,214.94,18.97019399]
[1731770577572,0.21969,214.98,214.94,4.6523]
[1731770578988,0.21969,214.98,214.93,11.6316]
[1731770579205,0.21969,214.98,214.93,16.2842]
[1731770579573,0.21969,214.98,214.93,11.6316]
[1731770579769,0.21969,214.98,214.97,14.31789399]
[1731770580873,0.21969,214.98,214.97,18.96969399]
[1731770585076,0.21969,214.98,214.97,14.31789399]
[1731770586675,0.21969,214.98,214.97,14.41156861]
[1731770588799,0.21969,214.98,214.96,18.96979399]
[1731770589099,0.21969,214.98,214.97,14.31789399]
[1731770589299,0.21969,214.98,214.96,16.2819]
[1731770589488,0.21969,214.98,214.96,30.59979399]
[1731770589684,0.21969,214.98,214.96,16.2819]
[1731770590485,0.21969,214.98,214.94,4.6522]
[1731770591302,0.21969,214.98,214.93,11.6316]
[1731770591303,14.31789399,214.96,214.93,11.6316]
[1731770591680,0.21969,214.98,214.93,16.2842]
[1731770592202,14.53758399,214.98,214.93,16.2842]
[1731770592387,0.21969,214.98,214.93,16.2842]
[1731770594986,0.21969,214.98,214.94,9.13936357]
[1731770595794,0.21969,214.98,214.88,0.12549]
[1731770596002,0.21969,214.98,214.93,9.13936357]
[1731770596406,0.21969,214.98,214.87,39.5586]
[1731770596607,0.21969,214.98,214.92,9.13936357]
[1731770598800,0.21969,214.98,214.93,16.2842]
[1731770599002,0.21969,214.98,214.94,9.13936357]
[1731770599194,0.21969,214.98,214.96,9.13936357]
[1731770599804,0.21969,214.98,214.93,39.5475]
[1731770599988,0.21969,214.98,214.96,9.13936357]
[1731770600786,0.21969,214.98,214.97,4.6518]
[1731770602782,0.21969,214.98,214.94,20.0]
[1731770602987,0.21969,214.98,214.97,9.13936357]
[1731770604088,0.21969,214.98,214.97,13.79116357]
[1731770606117,0.21969,214.98,214.96,20.76926357]
[1731770606702,0.21969,214.98,214.97,9.13936357]
[1731770607210,0.21969,214.98,214.96,25.42126357]
[1731770607511,0.21969,214.98,214.94,4.6522]
[1731770609212,9.13936357,214.95,214.88,11.6343]
[1731770609507,27.17288687,214.97,214.88,11.6343]
[1731770609508,9.13936357,214.94,214.88,11.6343]
[1731770609913,9.13936357,214.95,214.88,20.77366357]
[1731770610111,9.13936357,214.95,214.88,11.6343]
[1731770610312,3.39652665,214.94,214.88,20.77366357]
[1731770610515,9.13936357,214.95,214.88,20.77366357]
[1731770610815,3.39772825,214.94,214.88,20.77366357]
[1731770611313,3.39772825,214.94,214.88,25.42736357]
[1731770611515,9.13936357,214.95,214.88,25.42736357]
[1731770611727,23.776884,214.93,214.81,23.2763]
[1731770611892,32.91624757,214.93,214.86,4.654]
[1731770612309,32.91624757,214.93,214.86,13.79336357]
[1731770613793,9.13936357,214.87,214.85,0.46544101]
[1731770613995,32.91624757,214.86,214.85,0.46544101]
[1731770614189,33.13541219,214.86,214.85,0.46544101]
[1731770614492,33.26090219,214.86,214.85,0.46544101]
[1731770614903,37.91500219,214.86,214.85,0.46544101]
[1731770615500,0.21916462,214.82,214.71,16.3003]
[1731770615713,0.21916462,214.82,214.71,11.6431]
[1731770615714,9.13936357,214.76,214.71,11.6431]
[1731770615899,9.13936357,214.78,214.71,25.43986357]
[1731770616102,9.13936357,214.78,214.74,0.95757662]
[1731770616317,9.13936357,214.77,214.74,0.95757662]
[1731770616694,0.34465462,214.82,214.74,0.95757662]
[1731770616894,14.30708906,214.79,214.74,0.95757662]
[1731770618026,0.25098,214.82,214.74,0.95757662]
[1731770618027,14.30708906,214.82,214.75,14.30708906]
[1731770618197,14.30708906,214.85,214.78,14.30708906]
[1731770618393,28.3325016,214.93,214.74,17.25617662]
[1731770618394,14.30708906,214.88,214.81,14.30708906]
[1731770619125,18.96058906,214.89,214.82,14.30708906]
[1731770619299,14.30708906,214.88,214.81,14.30708906]
[1731770619506,14.30708906,214.88,214.8,18.96238906]
[1731770620016,14.30708906,214.86,214.8,4.6553]
[1731770620205,14.30708906,214.86,214.8,24.6553]
[1731770620410,14.30708906,214.88,214.8,30.60108906]
[1731770620718,14.30708906,214.91,214.83,14.30708906]
[1731770621403,14.30708906,214.9,214.83,14.30708906]
[1731770621609,14.30708906,214.91,214.84,30.59818906]
[1731770623001,14.30708906,214.92,214.84,30.59818906]
[1731770623202,14.30708906,214.9,214.84,16.2911]
[1731770623436,14.30708906,214.85,214.79,11.6388]
[1731770625522,14.30708906,214.85,214.79,16.2945]
[1731770627009,14.30708906,214.89,214.81,14.30708906]
[1731770627612,14.30708906,214.92,214.84,14.30708906]
[1731770628533,0.21969,214.98,214.86,14.30708906]
[1731770628534,14.30708906,214.94,214.86,14.30708906]
[1731770628841,14.30708906,214.94,214.87,14.30708906]
[1731770629014,14.30708906,214.94,214.88,4.6537]
[1731770629427,14.30708906,214.94,214.88,16.2881]
[1731770630012,14.30708906,214.95,214.88,16.2881]
[1731770631327,14.30708906,214.93,214.88,16.2881]
[1731770632141,14.30708906,214.93,214.88,11.6344]
[1731770634466,14.30708906,214.89,214.79,16.2949]
[1731770634633,14.30708906,214.87,214.79,16.2949]
[1731770634953,14.30708906,214.85,214.79,16.2949]
[1731770635548,14.30708906,214.87,214.79,16.2949]
[1731770636539,14.30708906,214.85,214.8,20.0]
[1731770636746,14.30708906,214.87,214.8,20.0]
[1731770637645,4.6536,214.89,214.82,14.30708906]
[1731770637646,14.30708906,214.89,214.82,14.30708906]
[1731770638638,14.30708906,214.89,214.83,16.2919]
[1731770640351,14.30708906,214.91,214.83,16.2919]
[1731770642662,14.30708906,214.91,214.84,14.30708906]
[1731770643768,14.30708906,214.91,214.83,16.2919]
[1731770644548,14.30708906,214.93,214.84,34.40076368]
[1731770644847,14.30708906,214.96,214.89,14.30708906]
[1731770645161,0.21969,214.98,214.93,14.30708906]
[1731770645345,0.21969,214.98,214.94,14.30708906]
[1731770646745,0.21969,214.98,214.95,14.30708906]
[1731770647153,0.21969,214.98,214.94,25.93818906]
[1731770647467,0.21969,214.98,214.91,4.653]
[1731770647468,14.30708906,214.97,214.91,4.653]
[1731770647850,19.17837906,214.98,214.91,18.96008906]
[1731770648245,0.21969,214.98,214.91,30.59278906]
[1731770648677,4.87129,214.98,214.91,30.59278906]
[1731770649173,0.21969,214.98,214.92,14.30708906]
[1731770649386,0.21969,214.98,214.94,14.30708906]
[1731770649589,0.21969,214.98,214.91,16.2857]
[1731770649590,0.21969,214.98,214.95,14.30708906]
[1731770650081,0.21969,214.98,214.96,4.652]
[1731770650587,0.21969,214.98,214.96,14.30708906]
[1731770650799,0.21969,214.98,214.94,30.58998906]
[1731770651464,0.21969,214.98,214.92,4.6527]
[1731770651465,14.52677906,214.98,214.92,4.6527]
[1731770651882,14.30708906,214.96,214.9,4.6531]
[1731770652089,14.30708906,214.97,214.9,30.59348906]
[1731770652267,0.21969,214.98,214.92,14.30708906]
[1731770652462,0.21969,214.98,214.94,14.30708906]
[1731770652875,0.21969,214.98,214.93,14.30708906]
[1731770653874,14.52677906,214.98,214.91,14.43257906]
[1731770654591,14.30708906,214.96,214.91,4.6529]
[1731770654969,14.30708906,214.95,214.9,11.6333]
[1731770655174,14.30708906,214.93,214.87,1.211556]
[1731770655392,14.30708906,214.93,214.87,5.865356]
[1731770655587,14.30708906,214.94,214.87,20.17244506]
[1731770655797,14.30708906,214.93,214.87,5.865356]
[1731770656577,14.30708906,214.93,214.87,17.500256]
[1731770656787,18.95978906,214.93,214.87,17.500256]
[1731770656995,14.30708906,214.92,214.87,12.846456]
[1731770657170,14.30708906,214.91,214.87,12.846456]
[1731770657503,14.30708906,214.88,214.87,1.211556]
[1731770658305,14.30708906,214.89,214.87,1.211556]
[1731770658596,14.30708906,214.94,214.87,1.211556]
[1731770658597,14.30708906,214.88,214.87,1.211556]
[1731770659377,14.30708906,214.89,214.87,1.211556]
[1731770659796,0.1,214.95,214.87,1.211556]
[1731770659797,14.30708906,214.91,214.87,1.211556]
[1731770660203,14.30708906,214.94,214.87,5.865356]
[1731770660378,14.30708906,214.94,214.87,31.80734506]
[1731770660580,14.30708906,214.96,214.89,14.30708906]
[1731770660799,3.39180441,214.95,214.89,14.30708906]
[1731770661000,18.95898906,214.97,214.89,14.30708906]
[1731770661201,3.39186596,214.96,214.9,14.30708906]
[1731770661383,18.95898906,214.97,214.9,14.30708906]
[1731770661704,3.39321827,214.96,214.92,14.43257906]
[1731770661900,5.64884998,214.98,214.92,14.43257906]
[1731770662091,5.64884998,214.98,214.92,0.12549]
[1731770662300,3.39335496,214.97,214.92,0.12549]
[1731770662602,3.39335496,214.96,214.92,0.12549]
[1731770662898,14.52677906,214.98,214.92,0.12549]
[1731770663102,3.39468233,214.97,214.93,4.6526]
[1731770663399,3.39468233,214.96,214.93,4.6526]
[1731770663572,0.21969,214.98,214.92,0.12549]
[1731770663773,14.30708906,214.96,214.91,11.6327]
[1731770664178,14.30708906,214.97,214.91,11.6327]
[1731770664401,14.30708906,214.94,214.88,4.77899]
[1731770664898,4.87129,214.98,214.89,14.30708906]
[1731770664899,14.30708906,214.96,214.89,14.30708906]
[1731770665077,18.95908906,214.96,214.9,4.77869]
[1731770665278,3.39589071,214.95,214.91,14.30708906]
[1731770665497,19.17847906,214.98,214.91,14.30708906]
[1731770665712,17.70341611,214.97,214.9,16.41199]
[1731770665905,3.39632705,214.96,214.9,16.41199]
[1731770666078,14.30708906,214.97,214.9,16.41199]
[1731770666282,17.70301149,214.96,214.9,16.41199]
[1731770666480,14.30708906,214.95,214.9,11.75879]
[1731770666698,14.30708906,214.95,214.9,11.6333]
[1731770667497,18.95918906,214.96,214.9,16.2866]
[1731770667700,14.30708906,214.96,214.91,0.12549]
[1731770667906,19.17847906,214.98,214.9,29.62917906]
[1731770668112,3.39241242,214.97,214.9,29.62917906]
[1731770668313,3.39241242,214.96,214.9,29.62917906]
[1731770668605,19.17847906,214.98,214.9,29.62917906]
[1731770668912,3.39250967,214.97,214.9,29.62917906]
[1731770669090,3.39250967,214.96,214.91,14.30708906]
[1731770669297,10.29989279,214.98,214.92,4.6528]
[1731770669499,3.39297428,214.97,214.91,14.30708906]
[1731770669796,3.39297428,214.97,214.91,18.96008906]
[1731770670205,3.39297428,214.96,214.91,18.96008906]
[1731770670389,0.21969,214.98,214.92,0.12549]
[1731770670594,3.39328278,214.97,214.92,0.12549]
[1731770670910,3.39328278,214.96,214.91,30.59278906]
[1731770671077,0.21969,214.98,214.91,30.59278906]
[1731770671288,3.39445027,214.97,214.91,30.59278906]
[1731770671499,3.39445027,214.96,214.91,16.2857]
[1731770671813,19.17837906,214.98,214.91,16.2857]
[1731770672009,3.39421437,214.97,214.91,16.2857]
[1731770672224,14.52677906,214.98,214.91,16.2857]
[1731770672514,3.39449923,214.97,214.91,16.2857]
[1731770672706,3.39449923,214.96,214.91,16.2857]
[1731770672905,14.52677906,214.98,214.91,16.2857]
[1731770673113,3.39406246,214.97,214.91,16.2857]
[1731770673312,3.39406246,214.96,214.91,16.2857]
[1731770673504,14.52677906,214.98,214.91,16.2857]
[1731770673697,3.39419607,214.97,214.91,16.2857]
[1731770673898,3.39419607,214.97,214.87,1.211556]
[1731770673899,3.39419607,214.96,214.92,30.81105368]
[1731770674096,0.21969,214.98,214.94,14.30708906]
[1731770674618,0.21969,214.98,214.93,14.30708906]
[1731770676115,4.87129,214.98,214.92,11.6322]
[1731770676315,14.30708906,214.97,214.92,16.285]
[1731770676504,0.21969,214.98,214.92,16.285]
[1731770677129,0.21969,214.98,214.92,30.59208906]
[1731770677621,0.21969,214.98,214.92,16.285]
[1731770678122,14.52677906,214.98,214.92,16.285]
[1731770678417,19.17837906,214.98,214.92,16.285]
[1731770678608,14.52677906,214.98,214.92,16.285]
[1731770678811,0.21969,214.98,214.92,16.285]
[1731770679591,4.87129,214.98,214.92,16.285]
[1731770680397,4.87129,214.98,214.87,1.211556]
[1731770680398,14.30708906,214.94,214.88,31.6341]
[1731770680608,14.30708906,214.94,214.88,11.6341]
[1731770680803,14.30708906,214.94,214.88,16.2878]
[1731770681207,14.30708906,214.94,214.88,11.6341]
[1731770681421,14.30708906,214.92,214.87,1.211556]
[1731770681799,14.30708906,214.92,214.87,5.865456]